[Event "*** SCC Grand Prix: Titled Tuesday Blitz"]
[Site "Chess.com"]
[Date "2020.07.21"]
[Round "1"]
[White "Tonychess32"]
[Black "Duong57"]
[Result "0-1"]
[WhiteElo "2610"]
[BlackElo "2312"]
[TimeControl "180+1"]
[EndTime "10:07:18 PDT"]
[Termination "Duong57 won by checkmate"]

1. e4 {[%clk 0:03:00.9]} 1... c5 {[%clk 0:02:58.5]} 2. Nf3 {[%clk 0:03:00.4]}
2... d6 {[%clk 0:02:58]} 3. c3 {[%clk 0:03:00.6]} 3... Nf6 {[%clk 0:02:56.1]} 4.
Be2 {[%clk 0:03:01]} 4... a6 {[%clk 0:02:39.8]} 5. O-O {[%clk 0:02:59.4]} 5...
Bd7 {[%clk 0:02:34]} 6. d3 {[%clk 0:02:59.3]} 6... e5 {[%clk 0:02:23.7]} 7. Re1
{[%clk 0:02:55]} 7... Be7 {[%clk 0:02:23.4]} 8. a4 {[%clk 0:02:48.4]} 8... O-O
{[%clk 0:02:22.9]} 9. Nbd2 {[%clk 0:02:41.8]} 9... Nc6 {[%clk 0:02:18.9]} 10. h3
{[%clk 0:02:41.6]} 10... b5 {[%clk 0:02:18.3]} 11. Nf1 {[%clk 0:02:38.6]} 11...
b4 {[%clk 0:02:11.7]} 12. Ng3 {[%clk 0:02:33.4]} 12... a5 {[%clk 0:02:02.6]} 13.
Nh2 {[%clk 0:02:22.4]} 13... Rb8 {[%clk 0:01:45.3]} 14. Rf1 {[%clk 0:02:18]}
14... Qc7 {[%clk 0:01:40.1]} 15. f4 {[%clk 0:02:13.8]} 15... Rfd8 {[%clk
0:01:28.3]} 16. Ng4 {[%clk 0:02:05.8]} 16... Nxg4 {[%clk 0:01:18.4]} 17. Bxg4
{[%clk 0:02:05.7]} 17... exf4 {[%clk 0:01:16.2]} 18. Bxf4 {[%clk 0:02:00]} 18...
Ne5 {[%clk 0:01:16.3]} 19. Bxd7 {[%clk 0:01:52.4]} 19... Rxd7 {[%clk 0:01:06.6]}
20. Nf5 {[%clk 0:01:50.2]} 20... Bf8 {[%clk 0:01:04.4]} 21. d4 {[%clk
0:01:44.7]} 21... cxd4 {[%clk 0:01:02.1]} 22. cxd4 {[%clk 0:01:45]} 22... Ng6
{[%clk 0:01:02.1]} 23. Bh2 {[%clk 0:01:38.1]} 23... Rc8 {[%clk 0:01:00.4]} 24.
Qg4 {[%clk 0:01:34.8]} 24... Qa7 {[%clk 0:00:56]} 25. h4 {[%clk 0:01:31.8]}
25... Kh8 {[%clk 0:00:42.7]} 26. h5 {[%clk 0:01:26]} 26... Ne5 {[%clk
0:00:42.7]} 27. Qe2 {[%clk 0:00:55.4]} 27... Nc6 {[%clk 0:00:29.7]} 28. Rad1
{[%clk 0:00:39.7]} 28... d5 {[%clk 0:00:24]} 29. exd5 {[%clk 0:00:24.9]} 29...
Rxd5 {[%clk 0:00:23.6]} 30. Kh1 {[%clk 0:00:19.8]} 30... Rcd8 {[%clk 0:00:22.5]}
31. Bg1 {[%clk 0:00:14.3]} 31... f6 {[%clk 0:00:17.9]} 32. h6 {[%clk 0:00:13.8]}
32... g6 {[%clk 0:00:16.6]} 33. Ne3 {[%clk 0:00:13.3]} 33... Rh5+ {[%clk
0:00:12]} 34. Bh2 {[%clk 0:00:13.6]} 34... Bd6 {[%clk 0:00:08.6]} 35. Ng4 {[%clk
0:00:10.7]} 35... f5 {[%clk 0:00:08.6]} 36. Kg1 {[%clk 0:00:10.6]} 36... fxg4
{[%clk 0:00:08.6]} 37. Bxd6 {[%clk 0:00:09.1]} 37... Nxd4 {[%clk 0:00:07.9]} 38.
Qf2 {[%clk 0:00:06.6]} 38... Ne2# {[%clk 0:00:05.9]} 0-1

[Event "*** SCC Grand Prix: Titled Tuesday Blitz"]
[Site "Chess.com"]
[Date "2020.07.21"]
[Round "1"]
[White "Thipsay"]
[Black "Sibelephant"]
[Result "0-1"]
[WhiteElo "2462"]
[BlackElo "3107"]
[TimeControl "180+1"]
[EndTime "10:07:19 PDT"]
[Termination "Sibelephant won by resignation"]

1. e4 {[%clk 0:03:00.9]} 1... c5 {[%clk 0:02:58.8]} 2. Nf3 {[%clk 0:03:00.8]}
2... e6 {[%clk 0:02:59.3]} 3. d4 {[%clk 0:03:00.8]} 3... cxd4 {[%clk 0:02:59.6]}
4. Nxd4 {[%clk 0:03:00.9]} 4... Nc6 {[%clk 0:03:00]} 5. Nc3 {[%clk 0:03:00.9]}
5... a6 {[%clk 0:02:59.9]} 6. Be2 {[%clk 0:02:59.9]} 6... Nxd4 {[%clk
0:02:57.7]} 7. Qxd4 {[%clk 0:02:59.2]} 7... Ne7 {[%clk 0:02:58.1]} 8. f4 {[%clk
0:02:57.9]} 8... Nc6 {[%clk 0:02:55.6]} 9. Qf2 {[%clk 0:02:57.6]} 9... b5 {[%clk
0:02:52.4]} 10. a3 {[%clk 0:02:56.4]} 10... Bb7 {[%clk 0:02:52.2]} 11. O-O
{[%clk 0:02:55.4]} 11... Be7 {[%clk 0:02:44.9]} 12. Be3 {[%clk 0:02:55.1]} 12...
O-O {[%clk 0:02:45]} 13. Rad1 {[%clk 0:02:52.8]} 13... Rc8 {[%clk 0:02:43.4]}
14. e5 {[%clk 0:02:16.9]} 14... Qe8 {[%clk 0:02:22.6]} 15. Bc5 {[%clk 0:02:02]}
15... Na5 {[%clk 0:01:49]} 16. Bxe7 {[%clk 0:01:56.2]} 16... Qxe7 {[%clk
0:01:49.4]} 17. Qd4 {[%clk 0:01:48.7]} 17... Rfd8 {[%clk 0:01:35.7]} 18. Ne4
{[%clk 0:01:32.8]} 18... Bxe4 {[%clk 0:01:27.3]} 19. Qxe4 {[%clk 0:01:32.7]}
19... Nc4 {[%clk 0:01:18.4]} 20. Bd3 {[%clk 0:01:23.8]} 20... g6 {[%clk
0:01:18.4]} 21. b4 {[%clk 0:01:14.6]} 21... Nxa3 {[%clk 0:01:14.9]} 22. Ra1
{[%clk 0:01:14.4]} 22... Nc4 {[%clk 0:01:15]} 23. Rxa6 {[%clk 0:01:14.3]} 23...
Qxb4 {[%clk 0:01:14.5]} 24. Qd4 {[%clk 0:01:08.5]} 24... Qc5 {[%clk 0:01:09.7]}
25. Qxc5 {[%clk 0:01:08.2]} 25... Rxc5 {[%clk 0:01:10.3]} 26. Bxc4 {[%clk
0:01:05.7]} 26... Rxc4 {[%clk 0:01:10.5]} 27. Rb6 {[%clk 0:01:05]} 27... b4
{[%clk 0:00:55.8]} 28. Rf2 {[%clk 0:01:04.8]} 28... Ra8 {[%clk 0:00:53]} 29. h4
{[%clk 0:01:01.8]} 29... Ra1+ {[%clk 0:00:46.7]} 30. Kh2 {[%clk 0:01:01.6]}
30... Rd1 {[%clk 0:00:46.1]} 31. g3 {[%clk 0:00:58.8]} 31... Kf8 {[%clk
0:00:39.1]} 32. Kh3 {[%clk 0:00:58]} 32... h5 {[%clk 0:00:36.9]} 33. Re2 {[%clk
0:00:57.3]} 33... Ke7 {[%clk 0:00:35.2]} 34. Kh2 {[%clk 0:00:55.9]} 34... Rc1
{[%clk 0:00:27.5]} 35. Kh3 {[%clk 0:00:54.7]} 35... Kd8 {[%clk 0:00:27.8]} 36.
Rb7 {[%clk 0:00:52.8]} 36... Kc8 {[%clk 0:00:26.7]} 37. Rb5 {[%clk 0:00:51.2]}
37... Kc7 {[%clk 0:00:26.1]} 38. Rd2 {[%clk 0:00:46.7]} 38... Rh1+ {[%clk
0:00:22.6]} 39. Kg2 {[%clk 0:00:45.9]} 39... Ra1 {[%clk 0:00:23.1]} 40. Kh3
{[%clk 0:00:44.5]} 40... Ra2 {[%clk 0:00:22.1]} 41. Rg2 {[%clk 0:00:39.8]} 41...
Ra8 {[%clk 0:00:22.2]} 42. Rd2 {[%clk 0:00:39.1]} 42... Kc6 {[%clk 0:00:22.6]}
0-1

[Event "*** SCC Grand Prix: Titled Tuesday Blitz"]
[Site "Chess.com"]
[Date "2020.07.21"]
[Round "1"]
[White "viniciusrego"]
[Black "Violord"]
[Result "0-1"]
[WhiteElo "2281"]
[BlackElo "2622"]
[TimeControl "180+1"]
[EndTime "10:07:21 PDT"]
[Termination "Violord won by resignation"]

1. d4 {[%clk 0:03:00.9]} 1... Nf6 {[%clk 0:02:57.7]} 2. c4 {[%clk 0:03:01.8]}
2... g6 {[%clk 0:02:57]} 3. Nc3 {[%clk 0:03:02.3]} 3... Bg7 {[%clk 0:02:57]} 4.
e4 {[%clk 0:03:02.9]} 4... d6 {[%clk 0:02:56.1]} 5. Nf3 {[%clk 0:03:03.4]} 5...
O-O {[%clk 0:02:51.7]} 6. Be2 {[%clk 0:03:03.9]} 6... Nbd7 {[%clk 0:02:49]} 7.
O-O {[%clk 0:03:03.3]} 7... e5 {[%clk 0:02:49]} 8. Re1 {[%clk 0:03:03.3]} 8...
Re8 {[%clk 0:02:48]} 9. Bf1 {[%clk 0:03:03.5]} 9... a6 {[%clk 0:02:46.9]} 10. d5
{[%clk 0:03:03.8]} 10... a5 {[%clk 0:02:46.8]} 11. Rb1 {[%clk 0:03:03.7]} 11...
Nc5 {[%clk 0:02:45.2]} 12. Nd2 {[%clk 0:03:01.4]} 12... Bd7 {[%clk 0:02:39.7]}
13. Nb3 {[%clk 0:02:53.1]} 13... Nxb3 {[%clk 0:02:35.9]} 14. Qxb3 {[%clk
0:02:51.4]} 14... b6 {[%clk 0:02:36]} 15. Qc2 {[%clk 0:02:50.7]} 15... Nh5
{[%clk 0:02:34.1]} 16. b3 {[%clk 0:02:48.6]} 16... f5 {[%clk 0:02:33.8]} 17. Bd3
{[%clk 0:02:42.3]} 17... Rf8 {[%clk 0:02:27.4]} 18. a3 {[%clk 0:02:41.1]} 18...
f4 {[%clk 0:02:15.1]} 19. f3 {[%clk 0:02:40.4]} 19... g5 {[%clk 0:02:10.1]} 20.
b4 {[%clk 0:02:39.6]} 20... axb4 {[%clk 0:02:09.1]} 21. axb4 {[%clk 0:02:40.5]}
21... g4 {[%clk 0:02:09.5]} 22. c5 {[%clk 0:02:17]} 22... gxf3 {[%clk 0:01:58]}
23. gxf3 {[%clk 0:02:15.4]} 23... Kh8 {[%clk 0:01:58.6]} 24. Qf2 {[%clk
0:01:58.2]} 24... Rg8 {[%clk 0:01:57.2]} 25. Kh1 {[%clk 0:01:58.5]} 25... Bf6
{[%clk 0:01:52.6]} 26. Rg1 {[%clk 0:01:57]} 26... Rxg1+ {[%clk 0:01:51.1]} 27.
Qxg1 {[%clk 0:01:56.1]} 27... Bh4 {[%clk 0:01:45.7]} 28. c6 {[%clk 0:01:47]}
28... Bh3 {[%clk 0:01:44.4]} 29. Bf1 {[%clk 0:01:46.5]} 29... Bxf1 {[%clk
0:01:39.8]} 30. Qxf1 {[%clk 0:01:44.6]} 30... Qg5 {[%clk 0:01:39.6]} 31. Qh3
{[%clk 0:01:37]} 31... Rg8 {[%clk 0:01:37.3]} 32. Bd2 {[%clk 0:01:33.5]} 32...
Bf2 {[%clk 0:01:36.7]} 33. Ne2 {[%clk 0:01:31.4]} 33... b5 {[%clk 0:01:30.9]}
34. Rf1 {[%clk 0:01:29.7]} 34... Bb6 {[%clk 0:01:29.6]} 35. Be1 {[%clk
0:01:27.7]} 35... Qh6 {[%clk 0:01:20.9]} 36. Qe6 {[%clk 0:01:03]} 36... Qg7
{[%clk 0:01:01.6]} 37. Qh3 {[%clk 0:00:58.3]} 37... Be3 {[%clk 0:00:58.4]} 38.
Bf2 {[%clk 0:00:40.7]} 38... Qh6 {[%clk 0:00:39.5]} 39. Qe6 {[%clk 0:00:30]}
39... Qg5 {[%clk 0:00:38.8]} 40. Rg1 {[%clk 0:00:27.9]} 40... Ng3+ {[%clk
0:00:35.5]} 41. Nxg3 {[%clk 0:00:17.8]} 41... Bxf2 {[%clk 0:00:32.6]} 42. Rg2
{[%clk 0:00:12.1]} 42... fxg3 {[%clk 0:00:32]} 43. hxg3 {[%clk 0:00:11.9]} 43...
Qh5+ {[%clk 0:00:28.4]} 44. Rh2 {[%clk 0:00:12.3]} 44... Qxf3+ {[%clk
0:00:28.1]} 45. Rg2 {[%clk 0:00:12.9]} 45... Bxg3 {[%clk 0:00:27.2]} 46. Qf6+
{[%clk 0:00:13.1]} 46... Qxf6 {[%clk 0:00:26.8]} 0-1

[Event "*** SCC Grand Prix: Titled Tuesday Blitz"]
[Site "Chess.com"]
[Date "2020.07.21"]
[Round "1"]
[White "BilodeauA"]
[Black "Sjakkerntobi"]
[Result "0-1"]
[WhiteElo "2803"]
[BlackElo "2424"]
[TimeControl "180+1"]
[EndTime "10:07:22 PDT"]
[Termination "Sjakkerntobi won on time"]

1. e4 {[%clk 0:02:55.8]} 1... e6 {[%clk 0:02:58.5]} 2. d4 {[%clk 0:02:54.2]}
2... d5 {[%clk 0:02:58.4]} 3. Nd2 {[%clk 0:02:54.8]} 3... a6 {[%clk 0:02:58.1]}
4. Ngf3 {[%clk 0:02:54.2]} 4... Nf6 {[%clk 0:02:57.6]} 5. Bd3 {[%clk 0:02:53.7]}
5... c5 {[%clk 0:02:57.7]} 6. exd5 {[%clk 0:02:44.8]} 6... exd5 {[%clk
0:02:56.3]} 7. dxc5 {[%clk 0:02:41.2]} 7... Bxc5 {[%clk 0:02:57.2]} 8. O-O
{[%clk 0:02:41.1]} 8... O-O {[%clk 0:02:57.3]} 9. Nb3 {[%clk 0:02:41.1]} 9...
Bb6 {[%clk 0:02:57.7]} 10. Nfd4 {[%clk 0:02:28.2]} 10... Nc6 {[%clk 0:02:50.5]}
11. c3 {[%clk 0:02:27.7]} 11... Bg4 {[%clk 0:02:45.3]} 12. f3 {[%clk 0:02:19.5]}
12... Bh5 {[%clk 0:02:17.9]} 13. Be3 {[%clk 0:02:19.3]} 13... Re8 {[%clk
0:02:14.5]} 14. Bf2 {[%clk 0:02:19.2]} 14... Bg6 {[%clk 0:02:09.9]} 15. Qd2
{[%clk 0:01:58.8]} 15... Qd6 {[%clk 0:02:03.8]} 16. Rae1 {[%clk 0:01:54.9]}
16... Ne5 {[%clk 0:01:50.9]} 17. Bxg6 {[%clk 0:01:53.4]} 17... Nxg6 {[%clk
0:01:47]} 18. Bg3 {[%clk 0:01:43.8]} 18... Qd7 {[%clk 0:01:40.5]} 19. Kh1 {[%clk
0:01:44.3]} 19... h5 {[%clk 0:01:35.4]} 20. Qg5 {[%clk 0:01:34.8]} 20... Rxe1
{[%clk 0:01:31.5]} 21. Rxe1 {[%clk 0:01:34.4]} 21... Re8 {[%clk 0:01:32.4]} 22.
Qd2 {[%clk 0:01:23.3]} 22... h4 {[%clk 0:01:21.5]} 23. Bf2 {[%clk 0:01:23.5]}
23... h3 {[%clk 0:01:01.3]} 24. g3 {[%clk 0:01:23.4]} 24... Ne5 {[%clk
0:01:01.6]} 25. Qg5 {[%clk 0:00:57.4]} 25... Nxf3 {[%clk 0:00:48.2]} 26. Nxf3
{[%clk 0:00:45.4]} 26... Bxf2 {[%clk 0:00:49.1]} 27. Rf1 {[%clk 0:00:35.3]}
27... Ne4 {[%clk 0:00:28.6]} 28. Qf4 {[%clk 0:00:35.4]} 28... Bb6 {[%clk
0:00:24.8]} 29. Nbd4 {[%clk 0:00:34.8]} 29... Nf6 {[%clk 0:00:19.6]} 30. Nf5
{[%clk 0:00:29.6]} 30... Qe6 {[%clk 0:00:15.1]} 31. Qg5 {[%clk 0:00:15.4]} 31...
g6 {[%clk 0:00:11.1]} 32. Nh6+ {[%clk 0:00:06.6]} 32... Kg7 {[%clk 0:00:11.5]}
33. Nd4 {[%clk 0:00:02.5]} 33... Bxd4 {[%clk 0:00:11.1]} 34. Nf5+ {[%clk
0:00:02.4]} 34... Qxf5 {[%clk 0:00:06.7]} 0-1

[Event "*** SCC Grand Prix: Titled Tuesday Blitz"]
[Site "Chess.com"]
[Date "2020.07.21"]
[Round "1"]
[White "Bulldog167"]
[Black "Orest_Vovk"]
[Result "1-0"]
[WhiteElo "2750"]
[BlackElo "2381"]
[TimeControl "180+1"]
[EndTime "10:07:25 PDT"]
[Termination "Bulldog167 won by resignation"]

1. Nf3 {[%clk 0:02:58.5]} 1... h6 {[%clk 0:02:56.9]} 2. g3 {[%clk 0:02:53]} 2...
g5 {[%clk 0:02:55.8]} 3. h3 {[%clk 0:02:51.3]} 3... Bg7 {[%clk 0:02:55.5]} 4.
Bg2 {[%clk 0:02:51.6]} 4... d6 {[%clk 0:02:52.4]} 5. c4 {[%clk 0:02:50.5]} 5...
c5 {[%clk 0:02:51.7]} 6. Nc3 {[%clk 0:02:50.6]} 6... Nc6 {[%clk 0:02:51.3]} 7.
d3 {[%clk 0:02:45.4]} 7... Nf6 {[%clk 0:02:50.5]} 8. Qd2 {[%clk 0:02:43.9]} 8...
g4 {[%clk 0:02:50.1]} 9. hxg4 {[%clk 0:02:43.5]} 9... Nxg4 {[%clk 0:02:50.1]}
10. b3 {[%clk 0:02:40.4]} 10... Nd4 {[%clk 0:02:41.1]} 11. Bb2 {[%clk 0:02:37]}
11... Nxf3+ {[%clk 0:02:31.2]} 12. Bxf3 {[%clk 0:02:36.3]} 12... Rb8 {[%clk
0:02:17.4]} 13. Nd5 {[%clk 0:02:26.7]} 13... Bxb2 {[%clk 0:02:13.2]} 14. Qxb2
{[%clk 0:02:26.6]} 14... Ne5 {[%clk 0:02:10.9]} 15. Bg2 {[%clk 0:02:23.4]} 15...
f6 {[%clk 0:02:01.3]} 16. Qd2 {[%clk 0:02:13.9]} 16... Nf7 {[%clk 0:01:56.3]}
17. Be4 {[%clk 0:02:09.4]} 17... Be6 {[%clk 0:01:47]} 18. Nf4 {[%clk 0:02:06.6]}
18... Qd7 {[%clk 0:01:32.1]} 19. O-O-O {[%clk 0:01:38.6]} 19... Ng5 {[%clk
0:01:11.1]} 20. Bg2 {[%clk 0:01:31]} 20... Bf7 {[%clk 0:00:55.7]} 21. Kb2 {[%clk
0:01:25.4]} 21... b5 {[%clk 0:00:54.3]} 22. Ka1 {[%clk 0:01:25.2]} 22... bxc4
{[%clk 0:00:43.9]} 23. dxc4 {[%clk 0:01:26.1]} 23... Qf5 {[%clk 0:00:38.3]} 24.
Bd5 {[%clk 0:01:07.2]} 24... Qe5+ {[%clk 0:00:36.5]} 25. Kb1 {[%clk 0:01:03.9]}
25... Ne4 {[%clk 0:00:25.6]} 26. Bxe4 {[%clk 0:00:59.2]} 26... Qxe4+ {[%clk
0:00:25.4]} 27. Qd3 {[%clk 0:00:58]} 27... Qxd3+ {[%clk 0:00:22.9]} 28. exd3
{[%clk 0:00:57.8]} 28... a5 {[%clk 0:00:22.4]} 29. Kc2 {[%clk 0:00:55.5]} 29...
Kd7 {[%clk 0:00:20.6]} 30. Ne2 {[%clk 0:00:48.8]} 30... Bg6 {[%clk 0:00:11.9]}
31. Nc3 {[%clk 0:00:46.7]} 31... e6 {[%clk 0:00:11]} 32. Kd2 {[%clk 0:00:46.6]}
32... h5 {[%clk 0:00:10.2]} 33. Ke3 {[%clk 0:00:46.8]} 33... Kc6 {[%clk
0:00:07]} 34. d4 {[%clk 0:00:46.4]} 34... cxd4+ {[%clk 0:00:05.6]} 35. Rxd4
{[%clk 0:00:47.3]} 35... Rhd8 {[%clk 0:00:03.5]} 36. Rhd1 {[%clk 0:00:46.1]}
36... Bf7 {[%clk 0:00:03.4]} 37. Nb5 {[%clk 0:00:40.2]} 37... d5 {[%clk
0:00:03.3]} 38. Nc3 {[%clk 0:00:40.9]} 38... dxc4 {[%clk 0:00:03.1]} 39. Rxd8
{[%clk 0:00:40.5]} 39... Rxd8 {[%clk 0:00:02.3]} 40. Rxd8 {[%clk 0:00:41.4]}
40... cxb3 {[%clk 0:00:02.9]} 41. axb3 {[%clk 0:00:41.5]} 41... e5 {[%clk
0:00:03.4]} 42. Ra8 {[%clk 0:00:40.2]} 42... Bxb3 {[%clk 0:00:03.2]} 43. Rxa5
{[%clk 0:00:39.9]} 43... Kd6 {[%clk 0:00:04.1]} 44. Ra6+ {[%clk 0:00:39.9]}
44... Ke7 {[%clk 0:00:04.3]} 45. Ne4 {[%clk 0:00:39.8]} 45... Be6 {[%clk
0:00:04.1]} 46. Ra7+ {[%clk 0:00:38.9]} 46... Kf8 {[%clk 0:00:03.3]} 47. Nc5
{[%clk 0:00:37.7]} 47... Bg4 {[%clk 0:00:03]} 48. Nd7+ {[%clk 0:00:37.3]} 48...
Kf7 {[%clk 0:00:01.7]} 49. Nxe5+ {[%clk 0:00:37.4]} 49... Ke6 {[%clk 0:00:02.6]}
50. Nxg4 {[%clk 0:00:37.6]} 1-0

[Event "*** SCC Grand Prix: Titled Tuesday Blitz"]
[Site "Chess.com"]
[Date "2020.07.21"]
[Round "1"]
[White "CroissantNeuf"]
[Black "GMBenjaminBok"]
[Result "0-1"]
[WhiteElo "2431"]
[BlackElo "2873"]
[TimeControl "180+1"]
[EndTime "10:07:29 PDT"]
[Termination "GMBenjaminBok won on time"]

1. e4 {[%clk 0:03:00.9]} 1... c5 {[%clk 0:02:59.2]} 2. Nf3 {[%clk 0:03:00.8]}
2... d6 {[%clk 0:02:59.7]} 3. Bb5+ {[%clk 0:03:01.2]} 3... Nd7 {[%clk
0:02:58.6]} 4. Ba4 {[%clk 0:03:00.8]} 4... Nf6 {[%clk 0:02:56.8]} 5. O-O {[%clk
0:02:59.9]} 5... a6 {[%clk 0:02:45.4]} 6. c4 {[%clk 0:02:55.7]} 6... g6 {[%clk
0:02:42]} 7. Nc3 {[%clk 0:02:50.4]} 7... Bg7 {[%clk 0:02:41.8]} 8. d4 {[%clk
0:02:50.3]} 8... cxd4 {[%clk 0:02:39.4]} 9. Nxd4 {[%clk 0:02:50.8]} 9... O-O
{[%clk 0:02:38.8]} 10. f3 {[%clk 0:02:46.6]} 10... Qc7 {[%clk 0:02:22.3]} 11.
Nd5 {[%clk 0:02:31.9]} 11... Nxd5 {[%clk 0:02:12]} 12. cxd5 {[%clk 0:02:32.4]}
12... Nb6 {[%clk 0:02:12.3]} 13. Bb3 {[%clk 0:02:27.7]} 13... Nc4 {[%clk
0:01:45.6]} 14. Kh1 {[%clk 0:02:08]} 14... Bd7 {[%clk 0:01:43]} 15. Bxc4 {[%clk
0:01:49.5]} 15... Qxc4 {[%clk 0:01:42.5]} 16. Be3 {[%clk 0:01:50.1]} 16... Rfc8
{[%clk 0:01:08.3]} 17. Qd2 {[%clk 0:01:49.2]} 17... Qa4 {[%clk 0:01:06.2]} 18.
h3 {[%clk 0:01:13.9]} 18... Rc7 {[%clk 0:00:59.8]} 19. f4 {[%clk 0:00:39.2]}
19... Rac8 {[%clk 0:00:54.7]} 20. f5 {[%clk 0:00:36]} 20... Rc4 {[%clk
0:00:42.4]} 21. Rad1 {[%clk 0:00:16]} 21... Qb4 {[%clk 0:00:17.4]} 22. Qf2
{[%clk 0:00:14.7]} 22... Be8 {[%clk 0:00:12.5]} 23. b3 {[%clk 0:00:06.7]} 23...
Rc3 {[%clk 0:00:12]} 24. Bg5 {[%clk 0:00:07.1]} 24... R8c7 {[%clk 0:00:08.8]}
25. Ne2 {[%clk 0:00:05.4]} 25... Rc2 {[%clk 0:00:08.2]} 26. Qf3 {[%clk
0:00:05.5]} 26... Rxa2 {[%clk 0:00:07.1]} 27. Nf4 {[%clk 0:00:04.8]} 27... a5
{[%clk 0:00:03.8]} 28. fxg6 {[%clk 0:00:04.2]} 28... hxg6 {[%clk 0:00:03.6]} 29.
h4 {[%clk 0:00:04.3]} 29... Qc3 {[%clk 0:00:02.5]} 30. Qg4 {[%clk 0:00:03.8]}
30... Qe5 {[%clk 0:00:02.5]} 31. h5 {[%clk 0:00:03.6]} 31... Qxe4 {[%clk
0:00:02.5]} 32. hxg6 {[%clk 0:00:03.1]} 32... fxg6 {[%clk 0:00:03]} 33. Rde1
{[%clk 0:00:03.3]} 33... Qf5 {[%clk 0:00:03.4]} 34. Qxf5 {[%clk 0:00:02.8]}
34... gxf5 {[%clk 0:00:04.3]} 35. Bxe7 {[%clk 0:00:03]} 35... Bf7 {[%clk
0:00:03]} 36. Bxd6 {[%clk 0:00:03.1]} 36... Rd7 {[%clk 0:00:03.5]} 37. Be5
{[%clk 0:00:02.6]} 37... Bxd5 {[%clk 0:00:03.7]} 38. Bxg7 {[%clk 0:00:01.8]}
38... Kxg7 {[%clk 0:00:04.6]} 0-1

[Event "*** SCC Grand Prix: Titled Tuesday Blitz"]
[Site "Chess.com"]
[Date "2020.07.21"]
[Round "1"]
[White "ehrenfeld"]
[Black "Zarinur"]
[Result "1-0"]
[WhiteElo "2519"]
[BlackElo "2114"]
[TimeControl "180+1"]
[EndTime "10:07:29 PDT"]
[Termination "ehrenfeld won by checkmate"]

1. e4 {[%clk 0:03:00.9]} 1... e5 {[%clk 0:02:58]} 2. Nc3 {[%clk 0:03:00.3]} 2...
Nf6 {[%clk 0:02:56.8]} 3. f4 {[%clk 0:03:00.3]} 3... d5 {[%clk 0:02:55.3]} 4.
fxe5 {[%clk 0:03:00.5]} 4... Nxe4 {[%clk 0:02:54.6]} 5. Qf3 {[%clk 0:03:01]}
5... Nxc3 {[%clk 0:02:33.8]} 6. bxc3 {[%clk 0:03:00.8]} 6... Be7 {[%clk
0:02:28.6]} 7. d4 {[%clk 0:03:00.3]} 7... O-O {[%clk 0:02:26.8]} 8. Bd3 {[%clk
0:03:00]} 8... h6 {[%clk 0:02:13.1]} 9. Ne2 {[%clk 0:02:57.2]} 9... c5 {[%clk
0:02:00]} 10. O-O {[%clk 0:02:54.4]} 10... c4 {[%clk 0:01:57.6]} 11. Bf5 {[%clk
0:02:53.8]} 11... Bxf5 {[%clk 0:01:56.1]} 12. Qxf5 {[%clk 0:02:53.1]} 12... Qd7
{[%clk 0:01:50.6]} 13. Qxd7 {[%clk 0:02:29.6]} 13... Nxd7 {[%clk 0:01:51.5]} 14.
Nf4 {[%clk 0:02:27.3]} 14... Nb6 {[%clk 0:01:43.3]} 15. a4 {[%clk 0:02:26.3]}
15... g5 {[%clk 0:01:34.5]} 16. Nh5 {[%clk 0:02:20.3]} 16... Nd7 {[%clk
0:01:32.6]} 17. Rb1 {[%clk 0:02:15.6]} 17... Rab8 {[%clk 0:01:23]} 18. h4 {[%clk
0:01:45.9]} 18... Nb6 {[%clk 0:01:06.3]} 19. a5 {[%clk 0:01:40.3]} 19... Nd7
{[%clk 0:01:03.4]} 20. Rb5 {[%clk 0:01:36.2]} 20... b6 {[%clk 0:00:36.3]} 21.
Rxd5 {[%clk 0:01:27.7]} 21... Rfd8 {[%clk 0:00:34.2]} 22. axb6 {[%clk
0:01:22.1]} 22... Nxb6 {[%clk 0:00:33.1]} 23. Ra5 {[%clk 0:01:17.9]} 23... Rb7
{[%clk 0:00:26.2]} 24. Nf6+ {[%clk 0:01:17.2]} 24... Bxf6 {[%clk 0:00:24.2]} 25.
Rxf6 {[%clk 0:01:16.2]} 25... Kg7 {[%clk 0:00:17.7]} 26. hxg5 {[%clk 0:01:13.4]}
26... hxg5 {[%clk 0:00:17.5]} 27. Bxg5 {[%clk 0:01:12.1]} 27... Rh8 {[%clk
0:00:17]} 28. Rc6 {[%clk 0:01:03.2]} 28... Rh5 {[%clk 0:00:15.9]} 29. Bf6+
{[%clk 0:01:01.4]} 29... Kh7 {[%clk 0:00:15.7]} 30. g4 {[%clk 0:00:18.4]} 30...
Rh3 {[%clk 0:00:13.8]} 31. d5 {[%clk 0:00:16.8]} 31... Rxc3 {[%clk 0:00:12.4]}
32. e6 {[%clk 0:00:15]} 32... fxe6 {[%clk 0:00:11.5]} 33. Bxc3 {[%clk
0:00:14.2]} 33... Nxd5 {[%clk 0:00:10.1]} 34. Be5 {[%clk 0:00:12.5]} 34... Rb1+
{[%clk 0:00:09.5]} 35. Kf2 {[%clk 0:00:10.9]} 35... c3 {[%clk 0:00:08.6]} 36.
Rxa7+ {[%clk 0:00:10.4]} 36... Kg6 {[%clk 0:00:06.9]} 37. Rxe6+ {[%clk
0:00:10.4]} 37... Kg5 {[%clk 0:00:06.7]} 38. Rg7+ {[%clk 0:00:10.1]} 38... Kh4
{[%clk 0:00:06.5]} 39. Rh6# {[%clk 0:00:10]} 1-0